bitfinex-derivatives/quotes_BTCF0:USTF0_20250130
["timestamp","ask_amount","ask_price","bid_price","bid_amount"]
[1738251222612,0.3718,105770.0,105750.0,0.1892569]
[1738251222807,0.189097,105760.0,105750.0,0.1892569]
[1738251223707,0.005,105760.0,105750.0,0.34379314]
[1738251223904,0.005,105760.0,105750.0,0.37579314]
[1738251224105,0.005,105760.0,105750.0,0.2212569]
[1738251224503,0.005,105760.0,105750.0,0.73659314]
[1738251224710,0.005,105760.0,105750.0,0.37579314]
[1738251225015,0.005,105760.0,105750.0,0.2212569]
[1738251225207,0.3658,105760.0,105750.0,0.2212569]
[1738251225407,0.554897,105760.0,105750.0,0.1892569]
[1738251225608,0.554897,105760.0,105750.0,0.0001419]
[1738251225808,0.005,105760.0,105750.0,0.1892569]
[1738251226006,0.005,105760.0,105750.0,0.70459314]
[1738251226411,0.007,105760.0,105750.0,0.70459314]
[1738251226619,0.007,105760.0,105750.0,0.88109314]
[1738251226816,0.5238,105780.0,105770.0,0.189079]
[1738251227013,0.5238,105780.0,105770.0,0.37561524]
[1738251227414,0.3608,105780.0,105770.0,0.37561524]
[1738251227614,0.189061,105780.0,105770.0,0.221079]
[1738251227816,0.549861,105780.0,105770.0,0.221079]
[1738251228318,0.630048,105790.0,105780.0,0.189061]
[1738251228514,0.0802,105790.0,105780.0,0.34359724]
[1738251229317,0.0802,105790.0,105780.0,0.189061]
[1738251229515,0.0802,105790.0,105780.0,0.70439724]
[1738251229711,0.0802,105790.0,105780.0,0.34359724]
[1738251231418,0.0842,105790.0,105780.0,0.34359724]
[1738251231717,0.0842,105790.0,105780.0,0.70439724]
[1738251231912,0.0932,105790.0,105780.0,0.70539724]
[1738251232315,0.1,105800.0,105780.0,0.52533624]
[1738251232516,0.00141873,105810.0,105790.0,0.63149624]
[1738251232721,0.00141873,105810.0,105800.0,0.70436224]
[1738251233723,0.549795,105820.0,105800.0,0.70436224]
[1738251234027,0.3608,105810.0,105790.0,0.2733829]
[1738251234322,0.549826,105800.0,105790.0,0.3053429]
[1738251234526,0.629226,105800.0,105790.0,0.3053429]
[1738251234727,0.268426,105800.0,105790.0,0.45987914]
[1738251234916,0.268426,105800.0,105790.0,0.1891829]
[1738251235219,0.793626,105800.0,105790.0,0.1891829]
[1738251235818,0.793626,105800.0,105790.0,0.0001419]
[1738251237042,0.94816224,105800.0,105790.0,0.0001419]
[1738251237224,0.95416224,105800.0,105790.0,0.0011419]
[1738251237420,0.799626,105800.0,105790.0,0.0011419]
[1738251238123,0.95416224,105800.0,105790.0,0.0011419]
[1738251238322,0.95716224,105800.0,105790.0,0.0011419]
[1738251238518,0.802626,105800.0,105790.0,0.0011419]
[1738251238729,0.802626,105800.0,105790.0,0.1901859]
[1738251238920,0.558826,105800.0,105790.0,0.34472214]
[1738251239320,0.558826,105800.0,105790.0,0.1901859]
[1738251239637,0.558826,105800.0,105790.0,0.2221459]
[1738251239835,0.717526,105800.0,105790.0,0.2221459]
[1738251240930,0.87206224,105800.0,105790.0,0.0331019]
[1738251241330,0.717526,105800.0,105790.0,0.2221459]
[1738251241525,0.639226,105800.0,105790.0,0.37668214]
[1738251241732,0.558826,105800.0,105790.0,0.37668214]
[1738251241931,0.3698,105800.0,105790.0,0.46238214]
[1738251242232,0.009,105800.0,105790.0,0.82318214]
[1738251242436,0.003,105800.0,105790.0,0.98771838]
[1738251242624,0.80231388,105840.0,105820.0,0.188979]
[1738251242823,0.80231388,105840.0,105820.0,0.37547524]
[1738251242824,0.64377555,105840.0,105820.0,0.37547524]
[1738251243023,0.56077555,105840.0,105830.0,0.188972]
[1738251243330,0.55117604,105840.0,105830.0,0.34350824]
[1738251243530,0.55117604,105840.0,105830.0,0.188972]
[1738251243734,0.55117604,105840.0,105830.0,0.220932]
[1738251243933,0.00141804,105840.0,105830.0,0.220932]
[1738251244131,0.00141804,105840.0,105830.0,0.73626824]
[1738251244438,0.00241804,105840.0,105830.0,0.73626824]
[1738251245238,0.19037204,105840.0,105830.0,0.73626824]
[1738251245427,0.19137204,105840.0,105830.0,0.73726824]
[1738251246034,0.19137204,105840.0,105830.0,0.70530824]
[1738251246231,0.19137204,105840.0,105830.0,0.221932]
[1738251246428,0.55217204,105840.0,105830.0,0.001]
[1738251246634,0.70670828,105840.0,105830.0,0.001]
[1738251246831,0.70670828,105840.0,105830.0,0.00076987]
[1738251246832,0.87160828,105840.0,105830.0,0.00076987]
[1738251247431,0.87460828,105840.0,105830.0,0.00076987]
[1738251247639,0.188972,105830.0,105820.0,0.0001419]
[1738251247825,0.189008,105810.0,105800.0,0.383782]
[1738251248134,0.189008,105810.0,105800.0,0.744582]
[1738251248323,0.189008,105810.0,105800.0,0.53831824]
[1738251248635,0.188992,105820.0,105810.0,0.189006]
[1738251248846,0.188975,105830.0,105820.0,0.18899]
[1738251249139,0.0011419,105830.0,105820.0,0.54979]
[1738251249332,0.0011419,105830.0,105820.0,0.73628624]
[1738251249835,0.0021419,105830.0,105820.0,0.73628624]
[1738251250043,0.1911139,105830.0,105820.0,0.22095]
[1738251250227,0.5519139,105830.0,105820.0,0.22095]
[1738251250734,0.69272913,105830.0,105820.0,0.03196]
[1738251251039,0.69272913,105830.0,105820.0,0.18899]
[1738251251638,0.18899,105820.0,105810.0,0.81629424]
[1738251251828,0.18899,105820.0,105810.0,0.268998]
[1738251252032,0.69473613,105830.0,105810.0,0.300958]
[1738251252239,0.69473613,105830.0,105810.0,0.45549424]
[1738251252431,0.69473613,105830.0,105820.0,0.18899]
[1738251252637,0.69273613,105830.0,105820.0,0.18899]
[1738251252833,0.69473613,105830.0,105820.0,0.18899]
[1738251253136,0.69473613,105830.0,105820.0,0.34352624]
[1738251253538,0.69273613,105830.0,105820.0,0.34352624]
[1738251253733,0.69273613,105830.0,105820.0,0.22095]
[1738251253939,0.5519209,105830.0,105820.0,0.22095]
[1738251254139,0.18899,105820.0,105810.0,0.189005]
[1738251254345,0.189008,105810.0,105800.0,0.3839239]
[1738251255035,0.189008,105810.0,105800.0,0.3519639]
[1738251255344,0.189008,105810.0,105800.0,0.3839239]
[1738251255541,0.189008,105810.0,105800.0,0.53846014]
[1738251255731,0.549794,105820.0,105810.0,0.189008]
[1738251255936,0.1921219,105830.0,105820.0,0.18899]
[1738251256235,0.5529219,105830.0,105820.0,0.22091]
[1738251256434,0.5509219,105830.0,105820.0,0.22091]
[1738251256636,0.69173713,105830.0,105820.0,0.22091]
[1738251256836,0.5509219,105830.0,105820.0,0.22091]
[1738251257236,0.1921219,105830.0,105820.0,0.22091]
[1738251257632,0.0031419,105830.0,105820.0,0.73624624]
[1738251257939,0.00141804,105840.0,105830.0,0.188972]
[1738251258241,0.00141804,105840.0,105830.0,0.86580824]
[1738251258536,0.51533624,105850.0,105830.0,0.299683]
[1738251258735,0.188954,105840.0,105830.0,0.299683]
[1738251259644,0.188954,105840.0,105830.0,0.31438047]
[1738251259833,0.549744,105850.0,105830.0,0.31438047]
[1738251260239,0.188954,105840.0,105830.0,0.31438047]
[1738251260445,0.190954,105840.0,105830.0,0.31438047]
[1738251261037,0.190954,105840.0,105830.0,0.28246047]
[1738251261233,0.549754,105840.0,105830.0,0.01469747]
[1738251261434,0.5235,105840.0,105820.0,0.00958222]
[1738251261636,0.34350824,105830.0,105820.0,0.0320619]
[1738251261844,0.70430824,105830.0,105820.0,0.0001419]
[1738251263243,0.51533624,105830.0,105800.0,0.03192]
[1738251263543,0.549808,105810.0,105800.0,0.03192]
[1738251263749,0.7216,105810.0,105790.0,0.84940523]
[1738251264051,0.549826,105800.0,105790.0,0.80402523]
[1738251264639,0.6069419,105810.0,105790.0,1.13032447]
[1738251264843,0.4351529,105810.0,105800.0,0.189026]
[1738251265143,0.7959529,105810.0,105800.0,0.189026]
[1738251266540,0.7159499,105810.0,105800.0,0.001]
[1738251266740,0.95038614,105810.0,105800.0,0.001]
[1738251267541,0.95038614,105810.0,105790.0,0.80402923]
[1738251267542,0.189026,105800.0,105790.0,0.298661]
[1738251267745,0.549826,105800.0,105790.0,0.304661]
[1738251268146,0.549826,105800.0,105790.0,0.272741]
[1738251268646,0.549826,105800.0,105790.0,0.266741]
[1738251269241,0.549826,105800.0,105790.0,0.269741]
[1738251269443,0.189026,105800.0,105790.0,0.269741]
[1738251269645,0.189026,105800.0,105790.0,0.42427724]
[1738251269843,0.189026,105800.0,105790.0,0.269741]
[1738251270039,0.549826,105800.0,105790.0,0.0807]
[1738251270243,0.70436224,105800.0,105790.0,0.003]
[1738251270651,0.78776224,105800.0,105790.0,0.003]
[1738251271151,0.78776224,105800.0,105790.0,0.004]
[1738251271746,0.78776224,105800.0,105790.0,0.001]
[1738251272858,0.78976224,105800.0,105790.0,0.001]
[1738251273160,0.79946732,105800.0,105790.0,0.001]
[1738251274053,0.189044,105790.0,105780.0,0.5600029]
[1738251274254,0.003,105800.0,105790.0,0.189044]
[1738251274555,0.003,105800.0,105790.0,0.78428024]
[1738251274760,0.2540429,105810.0,105800.0,0.189026]
[1738251274960,0.14116983,105810.0,105800.0,0.95149848]
[1738251275151,0.16923351,105820.0,105810.0,0.189008]
[1738251275463,0.16923351,105820.0,105810.0,0.73626424]
[1738251275757,0.16923351,105820.0,105810.0,0.581728]
[1738251276067,0.16923351,105820.0,105810.0,0.220928]
[1738251276068,0.35822351,105820.0,105810.0,0.220928]
[1738251276257,0.16923351,105820.0,105800.0,0.0827419]
[1738251276558,0.549808,105810.0,105800.0,0.3036829]
[1738251276759,0.70434424,105810.0,105800.0,0.0001419]
[1738251278061,0.70434424,105810.0,105800.0,0.0041419]
[1738251280160,0.70534424,105810.0,105800.0,0.0031419]
[1738251280661,0.70534424,105810.0,105800.0,0.0001419]
[1738251280866,0.70634424,105810.0,105800.0,0.0001419]
[1738251281861,0.56142508,105810.0,105800.0,0.1891679]
[1738251282165,0.82882444,105810.0,105800.0,0.1891679]
[1738251283561,0.6742882,105810.0,105800.0,0.1891679]
[1738251283761,0.6732882,105810.0,105800.0,0.1891679]
[1738251283958,0.1234802,105810.0,105800.0,0.1891679]
[1738251284257,0.11386312,105810.0,105800.0,0.78270414]
[1738251284465,0.11286312,105810.0,105800.0,0.86650414]
[1738251284662,0.11286312,105810.0,105800.0,0.86750414]
[1738251285161,0.35823251,105820.0,105810.0,0.189008]
[1738251285162,0.30186212,105820.0,105810.0,0.189008]
[1738251285361,0.31155019,105820.0,105810.0,0.189008]
[1738251286068,0.189008,105810.0,105800.0,0.1921609]
[1738251286363,0.549808,105810.0,105800.0,0.1921609]
[1738251287356,0.549808,105810.0,105800.0,0.1931609]
[1738251287860,0.70434424,105810.0,105800.0,0.0360619]
[1738251288053,0.78224424,105810.0,105800.0,0.0360619]
[1738251288258,0.78224424,105810.0,105800.0,0.0350619]
[1738251288662,0.78224424,105810.0,105800.0,0.0320619]
[1738251289166,0.627708,105810.0,105800.0,0.0320619]
[1738251289464,0.627708,105810.0,105800.0,0.0330619]
[1738251290067,0.627708,105810.0,105800.0,0.0011419]
[1738251290762,0.78224424,105810.0,105800.0,0.0011419]
[1738251290954,0.627708,105810.0,105800.0,0.1901679]
[1738251291164,0.549808,105810.0,105800.0,0.1901679]
[1738251292257,0.550808,105810.0,105800.0,0.1901679]
[1738251292563,0.66367112,105810.0,105800.0,0.1901679]
[1738251293264,0.66267112,105810.0,105800.0,0.1901679]
[1738251294057,0.66267112,105810.0,105800.0,0.2684679]
[1738251294458,0.66267112,105810.0,105800.0,0.1901679]
[1738251294759,0.81720736,105810.0,105800.0,0.0011419]
[1738251295463,0.84912736,105810.0,105800.0,0.0011419]
[1738251296156,0.84912736,105810.0,105800.0,0.0001419]
[1738251296357,0.84912736,105810.0,105800.0,0.0011419]
[1738251296566,0.84912736,105810.0,105800.0,0.0021419]
[1738251297367,0.85012736,105810.0,105800.0,0.0011419]
[1738251298057,0.85212736,105810.0,105800.0,0.0001419]
[1738251298666,0.30487112,105810.0,105800.0,0.0001419]
[1738251298965,0.30487112,105810.0,105800.0,0.1891679]
[1738251299760,0.66567112,105810.0,105800.0,0.1891679]
[1738251300356,0.72204151,105810.0,105800.0,0.1891679]
[1738251300556,0.72004151,105810.0,105800.0,0.1901679]
[1738251300867,0.17023351,105810.0,105800.0,0.70550414]
[1738251301756,0.16923351,105810.0,105800.0,0.70550414]
[1738251302462,0.18898,105830.0,105800.0,0.51647814]
[1738251302665,0.18898,105830.0,105820.0,0.18899]
[1738251302857,0.54978,105830.0,105820.0,0.18899]
[1738251303472,0.66271685,105830.0,105820.0,0.18899]
[1738251304568,0.30191685,105830.0,105820.0,0.18899]
[1738251304767,0.66271685,105830.0,105820.0,0.18899]
[1738251304969,0.67219763,105830.0,105820.0,0.18899]
[1738251305166,0.31339763,105830.0,105820.0,0.18899]
[1738251306057,0.18899,105820.0,105810.0,0.549804]
[1738251306373,0.54979,105820.0,105810.0,0.189004]
[1738251306763,0.54979,105820.0,105810.0,0.37306498]
[1738251307665,0.70432624,105820.0,105810.0,0.18406098]
[1738251307866,0.85852624,105820.0,105810.0,0.18406098]
[1738251308270,0.26909,105820.0,105810.0,0.52860522]
[1738251308570,0.55926378,105830.0,105820.0,0.18899]
[1738251308870,0.55926378,105830.0,105820.0,0.20376096]
[1738251309268,0.55926378,105830.0,105820.0,0.7190972]
[1738251309269,0.00948078,105830.0,105820.0,0.7190972]
[1738251309457,0.11293685,105840.0,105830.0,0.188972]
[1738251309658,0.11293685,105840.0,105830.0,0.8747792]
[1738251309859,0.11293685,105840.0,105830.0,0.86000824]
[1738251310473,0.14096884,105840.0,105830.0,0.86000824]
[1738251311874,0.19885666,105870.0,105860.0,0.188919]
[1738251312062,0.1974391,105870.0,105860.0,1.09693524]
[1738251312673,0.50770054,105880.0,105870.0,0.188901]
[1738251312867,0.50770054,105880.0,105870.0,0.78003724]
[1738251313057,0.50770054,105880.0,105870.0,0.79479759]
[1738251314573,0.50770054,105880.0,105870.0,0.94933383]
[1738251314761,0.25385027,105890.0,105880.0,0.188883]
[1738251315067,0.41026144,105900.0,105890.0,0.34340124]
[1738251315259,0.41026144,105900.0,105890.0,0.71896159]
[1738251316070,0.1,105900.0,105890.0,0.71896159]
[1738251316571,0.1,105900.0,105890.0,0.35816159]
[1738251316762,0.650647,105900.0,105890.0,0.01475886]
[1738251316968,0.650647,105900.0,105890.0,0.0466396]
[1738251317271,0.650647,105900.0,105880.0,0.70421624]
[1738251317461,0.799747,105900.0,105880.0,0.18888]
[1738251317774,0.3608,105890.0,105870.0,0.00976902]
[1738251318079,0.188872,105890.0,105880.0,0.15453624]
[1738251318263,0.264172,105890.0,105880.0,0.15453624]
[1738251318474,0.264172,105890.0,105880.0,0.18637624]
[1738251318665,0.0753,105890.0,105880.0,0.37525924]
[1738251319169,0.0753,105890.0,105880.0,0.39001943]
[1738251319672,0.436953,105900.0,105880.0,0.75081921]
[1738251319873,0.435953,105900.0,105880.0,0.75081921]
[1738251320173,0.435953,105900.0,105880.0,0.75181921]
[1738251320667,0.1,105900.0,105890.0,0.70420124]
[1738251320869,0.1,105900.0,105890.0,0.71883895]
[1738251321766,0.1,105900.0,105890.0,0.70420124]
[1738251322365,0.1,105900.0,105890.0,0.71420124]
[1738251322769,0.1,105900.0,105890.0,0.72884697]
[1738251322973,0.101,105900.0,105890.0,0.72884697]
[1738251323376,0.1471,105920.0,105910.0,0.34336524]
[1738251323669,0.0744,105920.0,105910.0,0.73600524]
[1738251324978,0.001,105920.0,105910.0,0.73700524]
[1738251325682,0.001,105920.0,105910.0,1.09780524]
[1738251325878,0.001,105920.0,105910.0,1.11255995]
[1738251326174,0.004,105920.0,105910.0,1.26709619]
[1738251326377,0.19441021,105950.0,105940.0,0.188776]
[1738251326677,0.19441021,105950.0,105940.0,0.73595224]
[1738251326678,0.11209364,105950.0,105940.0,0.73595224]
[1738251326975,0.0809,105970.0,105960.0,0.18874]
[1738251327177,0.28023411,105990.0,105980.0,0.188705]
[1738251327485,0.28023411,105990.0,105980.0,1.11142881]
[1738251328675,0.28023411,105990.0,105980.0,0.23529257]
[1738251328876,0.46892111,105990.0,105980.0,0.01474757]
[1738251329177,0.82972111,105990.0,105970.0,0.1888609]
[1738251329385,0.82972111,105990.0,105980.0,0.03184]
[1738251329677,0.188705,105980.0,105970.0,0.0001419]
[1738251329872,0.628405,105980.0,105970.0,0.0001419]
[1738251330281,0.343105,105980.0,105970.0,0.0001419]
[1738251330485,0.0755,105980.0,105970.0,0.78678749]
[1738251330989,0.0755,105980.0,105970.0,0.80141973]
[1738251331371,0.1,106000.0,105980.0,0.188705]
[1738251331683,0.1,106000.0,105990.0,0.81844959]
[1738251332583,0.1,106000.0,105990.0,0.581327]
[1738251332783,0.1,106000.0,105990.0,0.220527]
[1738251332984,0.1735,106000.0,105990.0,0.220527]
[1738251333188,0.5343,106000.0,105970.0,0.59806449]
[1738251333498,0.722972,106000.0,105980.0,0.220539]
[1738251333686,0.722972,106000.0,105980.0,0.188699]
[1738251333889,0.188692,105990.0,105980.0,0.0318]
[1738251334075,0.188692,105990.0,105970.0,0.5496509]
[1738251334386,0.549487,105990.0,105980.0,0.0318]
[1738251334586,0.910287,105990.0,105980.0,0.0318]
[1738251334781,0.910287,105990.0,105970.0,0.0319419]
[1738251334993,0.3608,105980.0,105970.0,0.1888639]
[1738251335185,0.3608,105980.0,105970.0,0.2206639]
[1738251335382,0.549487,105990.0,105970.0,0.23841247]
[1738251335580,0.5343,106000.0,105970.0,0.23841247]
[1738251335581,0.362172,106000.0,105980.0,0.188705]
[1738251335783,0.722972,106000.0,105980.0,0.549505]
[1738251336083,0.362172,106000.0,105990.0,0.188687]
[1738251336283,0.1735,106000.0,105990.0,0.188687]
[1738251336478,0.1735,106000.0,105990.0,0.80131559]
[1738251336876,0.1735,106000.0,105990.0,0.78660959]
[1738251337183,0.1735,106000.0,105990.0,0.80115481]
[1738251338881,0.1735,106000.0,105990.0,0.78660959]
[1738251339282,0.1735,106000.0,105990.0,0.549487]
[1738251339788,0.722969,106000.0,105990.0,0.221487]
[1738251340083,0.722969,106000.0,105990.0,0.0328]
[1738251340492,0.722969,106000.0,105980.0,0.188699]
[1738251340493,0.188703,105990.0,105970.0,0.1888599]
[1738251340685,0.549503,105990.0,105970.0,0.5814599]
[1738251340993,0.0764,105980.0,105970.0,0.5814599]
[1738251341182,0.0764,105980.0,105970.0,0.2206599]
[1738251342891,0.0764,105980.0,105970.0,0.1948599]
[1738251343190,0.625905,105980.0,105970.0,0.0061419]
[1738251343394,0.67432259,105980.0,105940.0,0.20121524]
[1738251343592,0.549558,105950.0,105940.0,0.16941524]
[1738251344294,0.549558,105950.0,105940.0,0.00141582]
[1738251344895,0.549558,105950.0,105940.0,0.00741582]
[1738251346088,0.549558,105950.0,105940.0,0.19919182]
[1738251346493,0.628858,105950.0,105940.0,0.197776]
[1738251346992,0.628858,105950.0,105940.0,0.008]
[1738251347380,0.86598059,105950.0,105940.0,0.008]
[1738251347692,0.628858,105950.0,105940.0,0.008]
[1738251347893,0.628958,105950.0,105940.0,0.008]
[1738251348287,0.628958,105950.0,105940.0,0.005]
[1738251348500,0.628958,105950.0,105940.0,0.004]
[1738251349285,0.67732259,105950.0,105930.0,0.0001419]
[1738251349492,0.188794,105930.0,105920.0,0.00036]
[1738251349798,0.188794,105930.0,105910.0,0.04599942]
[1738251349799,0.188812,105920.0,105910.0,0.04599942]
[1738251349997,0.78673459,105920.0,105910.0,0.04599942]
[1738251350295,0.188829,105910.0,105900.0,0.50399825]
[1738251350504,0.78675159,105910.0,105900.0,0.50399825]
[1738251350888,0.78675159,105910.0,105890.0,0.33614074]
[1738251350889,0.188847,105900.0,105890.0,0.33614074]
[1738251351084,0.78676959,105900.0,105890.0,0.33614074]
[1738251351387,0.81856959,105900.0,105890.0,0.33614074]
[1738251351696,0.188883,105880.0,105870.0,0.97254318]
[1738251351996,0.549683,105880.0,105870.0,0.97254318]
[1738251353101,0.549683,105880.0,105870.0,0.1903177]
[1738251353897,0.0001419,105890.0,105880.0,0.188883]
[1738251354286,0.1890069,105890.0,105880.0,0.188883]
[1738251354491,0.0001419,105890.0,105880.0,0.188883]
[1738251355192,0.0001419,105890.0,105880.0,1.688883]
[1738251355595,0.1890069,105890.0,105880.0,0.188883]
[1738251356798,0.0001419,105890.0,105880.0,0.78680559]
[1738251356994,0.0001419,105890.0,105880.0,0.86080559]
[1738251357298,0.0001419,105890.0,105880.0,2.157523]
[1738251358002,0.0001419,105890.0,105880.0,0.662523]
[1738251358204,0.0001419,105890.0,105880.0,0.630683]
[1738251358399,0.1890069,105890.0,105880.0,0.630683]
[1738251358700,0.1890069,105890.0,105880.0,0.007]
[1738251358886,0.1890069,105890.0,105880.0,0.195883]
[1738251359092,0.1890069,105890.0,105880.0,0.007]
[1738251359289,0.1890069,105890.0,105880.0,0.195883]
[1738251359488,0.1890069,105890.0,105880.0,0.007]
[1738251359903,0.5498069,105890.0,105880.0,0.007]
[1738251360398,0.1890069,105890.0,105880.0,0.007]
[1738251360595,0.0001419,105890.0,105880.0,0.195883]
[1738251360898,0.0001419,105890.0,105880.0,0.556683]
[1738251361093,0.0001419,105890.0,105880.0,0.745723]
[1738251361295,0.0001419,105890.0,105880.0,0.713883]
[1738251361495,0.0001419,105890.0,105880.0,0.745723]
[1738251361695,0.0001419,105890.0,105880.0,0.98284559]
[1738251361893,0.0001419,105890.0,105880.0,0.99284559]
[1738251362601,0.3608,105910.0,105880.0,0.80396259]
[1738251362809,0.188852,105900.0,105890.0,0.188865]
[1738251363105,0.188852,105900.0,105890.0,0.220705]
[1738251363300,0.188865,105890.0,105880.0,0.1642]
[1738251363511,0.188865,105890.0,105880.0,0.007]
[1738251363703,0.549665,105890.0,105880.0,0.007]
[1738251363907,0.549665,105890.0,105880.0,0.005]
[1738251364108,0.188865,105890.0,105880.0,0.195883]
[1738251365002,0.78678759,105890.0,105880.0,0.007]
[1738251365209,0.188883,105880.0,105870.0,0.0015586]
[1738251365398,0.549683,105880.0,105870.0,0.0001419]
[1738251366006,0.549683,105880.0,105870.0,0.1890429]
[1738251366800,0.188883,105880.0,105870.0,0.1890429]
[1738251367111,0.549673,105890.0,105880.0,0.188883]
[1738251367410,0.3609419,105900.0,105890.0,0.188865]
[1738251367411,0.1889949,105900.0,105890.0,0.188865]
[1738251367609,0.0001419,105900.0,105890.0,0.188865]
[1738251367809,0.0001419,105900.0,105890.0,0.220705]
[1738251368201,0.1889889,105900.0,105890.0,0.581505]
[1738251368404,0.5497889,105900.0,105890.0,0.220705]
[1738251368899,0.3609419,105900.0,105870.0,0.6043419]
[1738251369098,0.549676,105890.0,105880.0,0.220721]
[1738251369402,0.0001419,105900.0,105890.0,0.188865]
[1738251369805,0.0001419,105900.0,105890.0,0.549665]
[1738251370009,0.3609419,105900.0,105880.0,0.22072]
[1738251370201,0.549665,105890.0,105880.0,0.04184]
[1738251370510,0.188865,105890.0,105880.0,0.04684]
[1738251370711,0.188865,105890.0,105880.0,0.235723]
[1738251371107,0.188865,105890.0,105880.0,0.230723]
[1738251371309,0.1889939,105900.0,105890.0,0.188865]
[1738251372115,0.1889939,105900.0,105890.0,0.220705]
[1738251372310,0.1889939,105900.0,105890.0,0.188865]
[1738251372517,0.1889939,105900.0,105890.0,0.220705]
[1738251373003,0.5497939,105900.0,105890.0,0.03184]
[1738251373202,0.1889939,105900.0,105890.0,0.220705]
[1738251373413,0.0001419,105900.0,105890.0,0.581505]
[1738251373712,0.1889889,105900.0,105890.0,0.220705]
[1738251373909,0.1889889,105900.0,105890.0,0.581505]
[1738251374306,0.0001419,105900.0,105890.0,0.581505]
[1738251374705,0.0001419,105900.0,105890.0,0.7376167]
[1738251375314,0.188815,105920.0,105910.0,0.188829]
[1738251375516,0.188815,105920.0,105910.0,0.298669]
[1738251377215,0.193815,105920.0,105910.0,0.298669]
[1738251377810,0.005,105920.0,105910.0,0.89699631]
[1738251378007,0.005,105920.0,105910.0,0.298669]
[1738251378413,0.005,105920.0,105910.0,0.659469]
[1738251378613,0.005,105920.0,105910.0,0.86515631]
[1738251378916,0.005,105920.0,105910.0,0.89695631]
[1738251379116,0.005,105920.0,105910.0,0.266829]
[1738251379323,0.193812,105920.0,105910.0,0.266829]
[1738251379523,0.193812,105920.0,105910.0,0.298629]
[1738251379909,0.005,105920.0,105910.0,0.659429]
[1738251380114,0.005,105920.0,105910.0,0.89695631]
[1738251380314,0.005,105920.0,105910.0,0.53615631]
[1738251380515,0.005,105920.0,105910.0,0.298629]
[1738251380814,0.193812,105920.0,105910.0,0.298629]
[1738251381119,0.188829,105910.0,105900.0,0.2661889]
[1738251382225,0.188829,105910.0,105900.0,0.28094677]
[1738251382623,0.549629,105910.0,105900.0,0.01489977]
[1738251383218,0.549629,105910.0,105900.0,0.1889889]
[1738251383526,0.188819,105920.0,105910.0,0.188829]
[1738251384230,0.188829,105910.0,105900.0,0.1889869]
[1738251384725,0.188829,105910.0,105900.0,0.0001419]
[1738251384928,0.549629,105910.0,105900.0,0.0001419]
[1738251385814,0.93435631,105910.0,105900.0,0.0001419]
[1738251386123,1.01455631,105910.0,105900.0,0.0001419]
[1738251386326,1.01555631,105910.0,105900.0,0.0001419]
[1738251386528,0.778029,105910.0,105900.0,0.0001419]
[1738251388926,1.01555631,105910.0,105900.0,0.0001419]
[1738251389128,0.99846831,105910.0,105880.0,0.188878]
[1738251389422,0.549661,105900.0,105890.0,0.188863]
[1738251390231,0.73894447,105910.0,105890.0,0.3608]
[1738251390525,0.73894447,105910.0,105900.0,0.188847]
[1738251390526,0.70037747,105910.0,105900.0,0.188847]
[1738251390722,0.33857747,105910.0,105900.0,0.188847]
[1738251391426,0.31152291,105910.0,105900.0,0.188847]
[1738251391730,0.12268991,105910.0,105900.0,0.629347]
[1738251391931,0.11302834,105910.0,105900.0,0.785247]
[1738251392324,0.11302834,105910.0,105900.0,1.06457431]
[1738251392530,0.139941,105920.0,105910.0,0.188829]
[1738251392729,0.139941,105920.0,105910.0,0.79715631]
[1738251393228,0.16792921,105930.0,105910.0,0.64012731]
[1738251393432,0.41005166,105980.0,105940.0,0.3608]
[1738251393626,0.25189381,105990.0,105970.0,0.95912731]
[1738251393930,0.25189381,105990.0,105980.0,0.81883231]
[1738251394130,0.20826301,105990.0,105980.0,0.81883231]
[1738251394629,0.08796301,105990.0,105980.0,0.81883231]
[1738251395136,0.59448547,106000.0,105990.0,0.188687]
[1738251395431,0.37988201,106000.0,105990.0,0.78701431]
[1738251396733,0.188687,105990.0,105970.0,0.5516619]
[1738251397030,0.188705,105980.0,105970.0,0.0339419]
[1738251397337,0.549505,105980.0,105970.0,0.0339419]
[1738251397727,0.549505,105980.0,105970.0,0.0001419]
[1738251398120,0.86533231,105980.0,105970.0,0.0001419]
[1738251398436,0.86533231,105980.0,105950.0,0.00141554]
[1738251398437,0.18874,105960.0,105950.0,0.00141554]
[1738251398727,0.54954,105960.0,105950.0,0.00141554]
[1738251399331,0.54954,105960.0,105950.0,0.28318196]
[1738251399332,0.18874,105960.0,105950.0,0.28318196]
[1738251400431,0.54954,105960.0,105950.0,0.28318196]
[1738251400826,0.54954,105960.0,105950.0,0.28418196]
[1738251401234,0.62254,105960.0,105950.0,0.28418196]
[1738251401434,0.26174,105960.0,105950.0,0.28418196]
[1738251401630,0.1888659,105970.0,105950.0,0.83373996]
[1738251401831,0.1888659,105970.0,105960.0,0.22054]
[1738251401832,0.0001419,105970.0,105960.0,0.22054]
[1738251402238,0.0001419,105970.0,105960.0,0.18874]
[1738251402433,0.0001419,105970.0,105960.0,0.22054]
[1738251402638,0.1888649,105970.0,105960.0,0.22054]
[1738251403029,0.1888649,105970.0,105950.0,0.00141554]
[1738251403238,0.5496649,105970.0,105960.0,0.0318]
[1738251403544,0.5506649,105970.0,105960.0,0.0318]
[1738251403834,0.5506649,105970.0,105950.0,0.19017054]
[1738251404034,0.5506649,105970.0,105960.0,0.0318]
[1738251404240,0.1898649,105970.0,105960.0,0.0318]
[1738251404442,0.1898649,105970.0,105960.0,0.22054]
[1738251404630,0.5506649,105970.0,105960.0,0.22054]
[1738251405632,0.5506649,105970.0,105960.0,0.18858303]
[1738251405829,0.5496649,105970.0,105960.0,0.18858303]
[1738251406533,0.5496649,105970.0,105950.0,0.46149585]
[1738251406733,0.5496649,105970.0,105950.0,0.22396854]
[1738251406935,0.5496649,105970.0,105950.0,0.22196854]
[1738251407135,0.5506649,105970.0,105950.0,0.22196854]
[1738251407337,0.18874,105960.0,105950.0,0.22196854]
[1738251407543,0.18874,105960.0,105950.0,0.23196854]
[1738251407740,0.18874,105960.0,105950.0,0.20116854]
[1738251407928,0.3619419,105970.0,105950.0,0.23296854]
[1738251408130,0.5506699,105970.0,105960.0,0.18874]
[1738251409041,0.1898699,105970.0,105960.0,0.18874]
[1738251409649,0.5506699,105970.0,105960.0,0.18874]